bitfinex-derivatives/quotes_SOLF0:USTF0_20251230
["timestamp","ask_amount","ask_price","bid_price","bid_amount"]
[1767093312484,12.3418,124.61,124.57,0.05694744]
[1767093312681,5.11,124.6,124.54,285.67583134]
[1767093312884,5.11,124.6,124.54,275.73907663]
[1767093313081,5.11,124.6,124.54,180.87907663]
[1767093313283,5.11,124.59,124.54,180.87907663]
[1767093313673,0.06028772,124.58,124.55,0.05945781]
[1767093313876,5.17028772,124.58,124.55,0.05945781]
[1767093330702,5.17028772,124.58,124.54,12.1258]
[1767093331703,5.17028772,124.58,124.55,0.05396535]
[1767093339911,5.11,124.58,124.55,0.05396535]
[1767093340115,7.2317,124.62,124.55,4.94396535]
[1767093340415,7.2317,124.62,124.55,4.89]
[1767093341115,0.0598774,124.6,124.57,0.05112091]
[1767093350027,5.3898774,124.6,124.57,0.05112091]
[1767093351130,5.3898774,124.6,124.57,0.00112091]
[1767093366247,5.3898774,124.6,124.57,7.23512091]
[1767093368746,7.74e-05,124.6,124.57,7.23512091]
[1767093369547,0.06176628,124.6,124.57,7.23512091]
[1767093380353,0.06168888,124.6,124.57,7.23512091]
[1767093380550,1.53,124.62,124.57,7.23512091]
[1767093381454,0.0612251,124.61,124.57,7.23512091]
[1767093383356,1.59,124.64,124.58,12.6531]
[1767093383550,3.59712413,124.64,124.58,12.6531]
[1767093384456,0.05091174,124.62,124.6,0.0559669]
[1767093418379,2.16091174,124.62,124.58,12.7832]
[1767093419389,0.05091174,124.62,124.59,0.05757801]
[1767093421088,2.13091174,124.62,124.59,0.05757801]
[1767093421287,4.13803587,124.62,124.59,0.05757801]
[1767093430496,2.13091174,124.62,124.59,0.05757801]
[1767093432505,2.14,124.61,124.55,110.36675471]
[1767093432694,2.14,124.61,124.55,5.55]
[1767093433392,0.0579367,124.59,124.57,0.05705547]
[1767093436091,2.2479367,124.59,124.54,7.2358]
[1767093436294,2.2479367,124.59,124.54,13.0458]
[1767093437204,2.2479367,124.59,124.55,0.05254663]
[1767093440703,2.2479367,124.59,124.52,13.0465]
[1767093441704,2.2479367,124.59,124.54,0.04615834]
[1767093442708,2.14,124.58,124.54,0.04615834]
[1767093474836,9.3736,124.58,124.54,0.04615834]
[1767093475028,2.37,124.57,124.51,14.23396108]
[1767093476034,0.05697831,124.55,124.52,5.6]
[1767093479131,0.05697831,124.55,124.51,7.2371]
[1767093479335,2.40697831,124.55,124.5,12.8381]
[1767093484739,2.39,124.54,124.48,298.64554057]
[1767093484937,2.44165221,124.52,124.48,192.39122356]
[1767093485241,2.44165221,124.52,124.48,179.01242356]
[1767093486242,2.44165221,124.52,124.46,13.38]
[1767093486545,9.67875221,124.52,124.46,13.38]
[1767093486838,2.44165221,124.52,124.46,13.38]
[1767093488233,2.44165221,124.52,124.47,6.14]
[1767093497749,0.05165221,124.52,124.48,5.97]
[1767093525073,4.53164273,124.52,124.46,5.97]
[1767093526074,11.76864273,124.52,124.46,5.97]
[1767093528565,9.6778,124.51,124.46,5.97]
[1767093528771,2.00999052,124.5,124.46,5.97]
[1767093528970,0.05232915,124.49,124.46,5.97]
[1767093530982,0.00232915,124.49,124.46,5.97]
[1767093532074,0.00232915,124.49,124.46,6.02]
[1767093539190,0.00232915,124.49,124.46,100.98]
[1767093541596,0.00232915,124.49,124.47,5.67]
[1767093551004,11.66629052,124.54,124.47,5.67]
[1767093551893,0.06028193,124.52,124.49,0.05232915]
[1767093561406,0.06028193,124.52,124.49,5.65232915]
[1767093561610,0.00028193,124.52,124.49,5.65232915]
[1767093589342,0.00028193,124.52,124.49,0.05232915]
[1767093589546,2.39028193,124.52,124.47,5.87]
[1767093590446,2.39028193,124.52,124.48,0.05966363]
[1767093593046,2.39028193,124.52,124.48,5.92966363]
[1767093593244,0.00028193,124.52,124.48,5.92966363]
[1767093601660,9.60738193,124.52,124.48,0.05966363]
[1767093601959,2.37028193,124.52,124.46,5.87]
[1767093602150,2.37,124.51,124.46,5.87]
[1767093603559,9.6078,124.51,124.46,5.87]
[1767093610173,2.35,124.5,124.44,5.64]
[1767093610469,0.05171576,124.48,124.44,5.64]
[1767093620173,0.00171576,124.48,124.44,5.64]
[1767093620870,2.01097298,124.51,124.45,6.03]
[1767093621076,2.01097298,124.53,124.47,6.03]
[1767093621976,0.05974784,124.51,124.49,0.05205213]
[1767093630790,0.05974784,124.51,124.47,6.03]
[1767093637697,13.22744784,124.51,124.45,6.03]
[1767093637884,7.94097298,124.5,124.45,6.03]
[1767093638087,15.17927298,124.5,124.45,6.03]
[1767093639897,5.93,124.49,124.45,6.03]
[1767093640096,0.05697139,124.48,124.45,6.03]
[1767093640700,7.29627139,124.48,124.45,6.03]
[1767093643400,7.29627139,124.48,124.42,17.17935471]
[1767093643699,7.29627139,124.48,124.42,7.2426]
[1767093645399,7.29627139,124.48,124.43,6.03]
[1767093650502,13.21627139,124.48,124.43,6.03]
[1767093657213,7.2401,124.47,124.43,6.03]
[1767093660911,9.25107298,124.47,124.43,6.03]
[1767093662012,2.01097298,124.47,124.43,6.03]
[1767093666814,7.29647139,124.48,124.43,6.03]
[1767093669113,13.40647139,124.48,124.43,6.03]
[1767093671917,0.05697139,124.48,124.44,6.34]
[1767093680823,0.05697139,124.48,124.44,13.5816]
[1767093681024,3.14268613,124.54,124.45,6.13]
[1767093681230,12.09900558,124.53,124.45,6.13]
[1767093681419,3.14268613,124.52,124.45,6.13]
[1767093682027,0.0575503,124.5,124.47,6.1858474]
[1767093686728,6.1675503,124.5,124.45,6.13]
[1767093688819,6.1675503,124.5,124.43,6.13]
[1767093688820,6.11,124.49,124.43,6.13]
[1767093689026,0.05298825,124.47,124.43,6.13]
[1767093700523,9.30567438,124.47,124.42,9.93675471]
[1767093700727,3.14268613,124.45,124.41,6.13]
[1767093700929,0.06036707,124.44,124.41,6.13]
[1767093731552,0.00036707,124.44,124.41,6.18817014]
[1767093750980,2.01266565,124.44,124.41,6.18817014]
[1767093753675,0.00036707,124.44,124.41,6.18817014]
[1767093779198,2.01229858,124.47,124.41,6.18817014]
[1767093779591,15.55209858,124.48,124.41,6.18817014]
[1767093779795,110.57209858,124.48,124.41,6.18817014]
[1767093780295,0.05985989,124.46,124.41,6.18817014]
[1767093781800,0.05985989,124.46,124.41,13.43137014]
[1767093782003,0.05985989,124.46,124.42,6.61]
[1767093790209,15.83275847,124.46,124.42,6.61]
[1767093790406,15.83275847,124.46,124.41,0.05817014]
[1767093790611,8.59215847,124.46,124.41,0.05817014]
[1767093791808,7.2411,124.45,124.41,0.05817014]
[1767093792009,8.59215847,124.46,124.38,17.18145471]
[1767093792010,8.53229858,124.44,124.38,6.31]
[1767093792211,13.7622,124.43,124.38,6.31]
[1767093792412,2.01229858,124.42,124.38,6.31]
[1767093793013,0.05649078,124.41,124.38,6.31]
[1767093812633,13.2514,124.45,124.38,6.31]
[1767093812932,95.04,124.44,124.38,6.31]
[1767093813326,111.43700403,124.45,124.38,6.31]
[1767093813736,0.05587054,124.43,124.4,0.05387224]
[1767093820542,7.29807054,124.43,124.4,0.05387224]
[1767093820744,7.29807054,124.43,124.39,6.51]
[1767093820946,16.45367457,124.43,124.37,6.51]
[1767093824647,7.2428,124.42,124.37,6.51]
[1767093831943,13.6028,124.42,124.37,6.51]
[1767093832138,7.2434,124.41,124.37,6.51]
[1767093832338,0.05624496,124.4,124.37,6.51]
[1767093840349,0.05624496,124.4,124.35,25.11257781]
[1767093840654,0.05624496,124.4,124.35,16.46675471]
[1767093840951,7.30024496,124.4,124.35,16.46675471]
[1767093841146,9.16184899,124.4,124.35,16.46675471]
[1767093841349,7.2459,124.37,124.34,3.79062824]
[1767093841552,0.05370791,124.37,124.34,3.79062824]
[1767093861863,95.06,124.42,124.36,6.01]
[1767093862269,6.09,124.44,124.36,6.01]
[1767093862561,110.40684827,124.43,124.37,6.01]
[1767093862761,0.05421696,124.41,124.39,0.05588849]
[1767093873780,2.06846523,124.41,124.38,6.01]
[1767093879886,0.05421696,124.41,124.38,6.01]
[1767093880086,95.09421696,124.41,124.38,6.01]
[1767093880389,2.01424827,124.4,124.36,6.01]
[1767093880585,108.42761696,124.41,124.33,6.01]
[1767093880586,2.01424827,124.38,124.33,6.01]
[1767093880794,0.05263157,124.37,124.33,6.01]
[1767093880994,95.09263157,124.37,124.33,6.01]
[1767093881186,2.01424827,124.36,124.33,6.01]
[1767093882688,9.26064827,124.36,124.31,6.01]
[1767093882886,0.05089696,124.35,124.31,6.01]
[1767093891305,0.00089696,124.35,124.32,6.08]
[1767093892101,0.00089696,124.35,124.32,6.132488]
[1767093902308,7.24779696,124.35,124.32,6.132488]
[1767093906214,0.00089696,124.35,124.32,6.132488]
[1767093917416,13.52789696,124.35,124.32,0.052488]
[1767093917622,15.54214523,124.35,124.32,0.052488]
[1767093917821,110.62214523,124.35,124.32,0.052488]
[1767093918526,108.60789696,124.35,124.32,0.052488]
[1767093919233,108.60789696,124.35,124.3,18.11307352]
[1767093919533,95.08,124.34,124.3,18.11307352]
[1767093923934,13.52789696,124.35,124.3,18.11307352]
[1767093924132,108.60789696,124.35,124.3,18.11307352]
[1767093924334,7.24789696,124.35,124.31,6.25]
[1767093951260,7.2475,124.34,124.3,11.86307352]
[1767093951452,13.6975,124.34,124.3,11.86307352]
[1767093951758,95.1,124.33,124.3,11.86307352]
[1767093958562,13.6975,124.34,124.3,18.42307352]
[1767093958865,102.3475,124.34,124.3,18.42307352]
[1767093960266,95.1,124.34,124.3,18.42307352]
[1767093960473,101.69089696,124.35,124.3,18.42307352]
[1767093961171,6.59,124.34,124.3,18.42307352]
[1767093961369,6.59,124.34,124.3,11.86307352]
[1767093969275,6.59,124.34,124.3,18.42307352]
[1767093974284,95.10089696,124.35,124.3,18.42307352]
[1767093974472,95.10089696,124.35,124.31,6.56]
[1767093974671,0.00089696,124.35,124.31,6.56]
[1767094001483,0.00089696,124.35,124.31,13.809]
[1767094003498,0.00089696,124.35,124.31,6.56]
[1767094006105,6.36089696,124.35,124.3,25.59277352]
[1767094016709,6.36089696,124.35,124.3,35.6100306]
[1767094017008,6.36089696,124.35,124.3,25.59277352]
[1767094017209,6.36089696,124.35,124.3,35.6100306]
[1767094018710,0.00089696,124.35,124.31,6.71]
[1767094061946,5.93089696,124.35,124.31,6.71]
[1767094070051,12.59089696,124.35,124.31,6.71]
[1767094070448,12.59089696,124.35,124.3,29.1300306]
[1767094070851,12.59089696,124.35,124.3,35.7500306]
[1767094073556,5.93089696,124.35,124.31,6.62]
[1767094085567,5.93089696,124.35,124.31,13.8692]
[1767094088470,12.18089696,124.35,124.31,7.2492]
[1767094088772,12.18089696,124.35,124.3,25.34287352]
[1767094093773,12.18089696,124.35,124.3,18.09307352]
[1767094098471,5.93089696,124.35,124.31,6.39]
[1767094100279,6.46,124.37,124.32,6.39]
[1767094101378,0.05523639,124.36,124.32,6.39]
[1767094106680,6.51523639,124.36,124.31,9.26353309]
[1767094106888,6.51523639,124.36,124.31,15.65353309]
[1767094107285,6.51523639,124.36,124.31,13.639]
[1767094112792,6.51523639,124.36,124.31,6.39]
[1767094139810,13.76153639,124.36,124.31,6.39]
[1767094154432,6.29,124.35,124.3,11.86307352]
[1767094155331,6.29,124.35,124.3,18.18307352]
[1767094158433,6.29,124.35,124.3,28.2003306]
[1767094159526,6.29,124.35,124.3,18.18307352]
[1767094161738,6.29,124.35,124.3,28.2003306]
[1767094165540,6.29,124.35,124.3,18.18307352]
[1767094165737,6.29,124.35,124.31,6.11]
[1767094166040,5.99523639,124.36,124.31,6.11]
[1767094174858,5.99523639,124.36,124.3,29.1300306]
[1767094175048,5.99523639,124.36,124.3,35.2400306]
[1767094176058,5.99523639,124.36,124.3,27.9903306]
[1767094184564,5.99523639,124.36,124.31,6.11]
[1767094210891,0.05523639,124.36,124.31,6.11]
[1767094211195,0.05523639,124.36,124.32,6.02]
[1767094220102,6.38,124.38,124.33,0.05252261]
[1767094221003,0.05144125,124.37,124.33,0.05252261]
[1767094221507,0.05144125,124.37,124.33,6.04252261]
[1767094232210,6.46144125,124.37,124.33,0.05252261]
[1767094235909,6.46144125,124.37,124.33,6.04252261]
[1767094254737,0.00144125,124.37,124.35,6.26]
[1767094255043,8.53262576,124.41,124.35,6.26]
[1767094255647,8.53262576,124.41,124.35,13.5068]
[1767094256142,0.05680543,124.39,124.37,0.05211683]
[1767094265148,6.31680543,124.39,124.33,23.51485708]
[1767094265356,6.26,124.38,124.33,13.4976]
[1767094266348,6.26,124.38,124.34,0.05672865]
[1767094286367,5.99,124.4,124.34,6.00672865]
[1767094286665,2.64262576,124.41,124.36,13.48390457]
[1767094287064,2.64262576,124.41,124.36,20.73010457]
[1767094287254,2.64262576,124.41,124.36,13.48390457]
[1767094287453,5.99,124.42,124.38,7.53390457]
[1767094288668,0.05542578,124.41,124.38,7.53390457]
[1767094289368,0.05542578,124.41,124.37,13.54081202]
[1767094290068,0.05542578,124.41,124.37,20.78641202]
[1767094290269,5.99,124.44,124.38,5.95]
[1767094291471,0.05762914,124.42,124.4,0.0529893]
[1767094291770,5.99,124.44,124.4,0.0529893]
[1767094292869,0.05815932,124.43,124.4,0.0529893]
[1767094293368,6.04815932,124.43,124.4,0.0529893]
[1767094322281,6.04815932,124.43,124.35,5.78]
[1767094322483,5.99,124.43,124.35,5.78]
[1767094323292,0.05558658,124.4,124.38,0.05802509]
[1767094323683,115.75735623,124.49,124.38,8.98538132]
[1767094323980,115.75735623,124.49,124.39,5.78]
[1767094324182,3.14735623,124.47,124.39,5.78]
[1767094324575,0.05709931,124.44,124.42,0.0524133]
[1767094327490,6.24,124.45,124.42,0.0524133]
[1767094328490,6.29472503,124.45,124.42,0.0524133]
[1767094360315,6.29472503,124.45,124.42,0.0024133]
[1767094360521,6.29472503,124.45,124.39,10.01725708]
[1767094361426,6.29472503,124.45,124.41,0.05267991]
[1767094361817,6.29472503,124.45,124.41,0.00267991]
[1767094364327,13.53582503,124.45,124.41,0.00267991]
[1767094364626,6.19,124.44,124.41,0.00267991]
[1767094365127,8.20173738,124.44,124.41,0.00267991]
[1767094365427,6.19,124.41,124.37,10.01725708]
[1767094366322,6.19,124.41,124.38,0.05901015]
[1767094367326,6.24115856,124.41,124.38,0.05901015]
[1767094375033,6.24115856,124.41,124.38,7.30401015]
[1767094382134,6.14,124.45,124.39,13.7942]
[1767094382531,6.14,124.45,124.39,8.56173738]
[1767094383143,0.06123568,124.43,124.41,0.05724018]
[1767094401071,13.4105,124.46,124.41,0.05724018]
[1767094401270,6.17,124.45,124.41,0.05724018]
[1767094402165,0.05193157,124.44,124.41,0.05724018]
[1767094405976,6.17,124.47,124.41,6.33724018]
[1767094406967,0.05872084,124.45,124.41,6.33724018]
[1767094407273,0.05872084,124.45,124.41,13.58054018]
[1767094409875,6.17,124.47,124.42,13.5224]
[1767094410276,6.17,124.47,124.42,6.28]
[1767094411076,0.0540917,124.46,124.42,6.28]
[1767094411672,0.0540917,124.46,124.43,7.2422]
[1767094413280,0.0540917,124.46,124.42,6.28]
[1767094415770,0.0540917,124.46,124.42,13.5227]
[1767094417581,0.0540917,124.46,124.42,6.28]
[1767094420479,0.0540917,124.46,124.42,13.79983438]
[1767094422286,0.0540917,124.46,124.42,21.04263438]
[1767094427191,0.0540917,124.46,124.43,7.2421]
[1767094427385,6.17,124.47,124.43,7.2421]
[1767094427588,6.17,124.47,124.43,13.8421]
[1767094427891,6.17,124.47,124.43,21.36193438]
[1767094428297,0.06009985,124.46,124.44,0.05257483]
[1767094428485,6.15,124.48,124.44,0.05257483]
[1767094429590,0.05911428,124.47,124.44,0.05257483]
[1767094429986,0.05911428,124.47,124.44,13.89407483]
[1767094430287,6.15,124.45,124.39,16.61725708]
[1767094430588,6.15,124.45,124.4,6.6]
[1767094431189,0.06018087,124.44,124.41,0.05709558]
[1767094431593,6.15,124.47,124.41,6.65709558]
[1767094432587,6.15,124.47,124.42,6.6]
[1767094432788,0.05230611,124.45,124.42,6.6]
[1767094438798,6.15,124.47,124.42,6.6]
[1767094439702,0.05493003,124.46,124.42,6.6]
[1767094440804,0.00493003,124.46,124.42,13.8427]
[1767094441102,0.00493003,124.46,124.43,6.48]
[1767094442905,0.00493003,124.46,124.43,13.722]
[1767094443205,0.00493003,124.46,124.44,6.48]
[1767094443407,0.00493003,124.46,124.44,6.53307465]
[1767094445699,6.31,124.49,124.44,6.53307465]
[1767094446706,0.05611208,124.48,124.44,6.53307465]
[1767094477953,5.81,124.5,124.46,6.15]
[1767094478854,5.81,124.5,124.47,0.0556818]
[1767094479150,5.81,124.5,124.46,5.74630554]
[1767094479753,13.0482,124.5,124.46,5.74630554]
[1767094480253,0.0556818,124.49,124.47,0.05430024]
[1767094500988,13.2693,124.48,124.44,5.69]
[1767094501176,2.0110361,124.47,124.44,5.69]
[1767094501987,2.0110361,124.47,124.44,5.74470055]
[1767094503191,108.2493,124.48,124.44,5.74470055]
[1767094503493,2.0110361,124.47,124.44,5.74470055]
[1767094509694,108.2493,124.48,124.44,5.74470055]
[1767094509887,110.2603361,124.48,124.44,5.74470055]
[1767094511797,104.2303361,124.48,124.44,5.74470055]
[1767094513299,96.9910361,124.48,124.44,5.74470055]
[1767094524709,103.2010361,124.48,124.44,5.74470055]
[1767094525103,6.21,124.52,124.44,5.74470055]
[1767094525402,6.21,124.52,124.47,5.96]
[1767094525602,8.2210361,124.52,124.47,5.96]
[1767094525803,2.0110361,124.5,124.45,23.21805708]
[1767094526106,2.0110361,124.5,124.46,5.96]
[1767094526308,0.05430024,124.49,124.46,6.01920807]
[1767094533017,0.00430024,124.49,124.46,6.01920807]
[1767094533210,13.4457,124.55,124.48,5.96]
[1767094533713,13.4444,124.57,124.5,5.96]
[1767094534115,6.21,124.56,124.52,0.05705833]
[1767094536910,108.4237,124.58,124.52,6.01705833]
[1767094537817,6.21,124.57,124.52,6.01705833]
[1767094546031,7.2337,124.58,124.53,5.6]
[1767094546429,101.1,124.59,124.53,5.6]
[1767094546738,6.14,124.59,124.55,0.05362361]
[1767094546936,9.28155736,124.59,124.55,0.05362361]
[1767094547136,6.14,124.58,124.55,0.05362361]
[1767094557844,6.07,124.57,124.51,5.6]
[1767094558044,6.07,124.57,124.49,5.54]
[1767094558545,6.07,124.55,124.49,5.54]
[1767094558849,0.05093031,124.53,124.51,0.05459662]
[1767094562045,0.05093031,124.53,124.46,217.58145708]
[1767094562046,6.12093031,124.53,124.48,5.54]
[1767094562847,6.12093031,124.53,124.49,0.05721464]
[1767094563158,6.07,124.51,124.46,5.54]
[1767094563561,6.07,124.51,124.46,12.7803]
[1767094563960,6.07,124.51,124.46,5.54]
[1767094564148,0.06070478,124.5,124.47,0.05246851]
[1767094592177,94.96,124.53,124.47,5.70246851]
[1767094592178,5.76,124.53,124.47,5.70246851]
[1767094592972,0.05624298,124.51,124.47,5.70246851]
[1767094593180,2.01033458,124.54,124.47,5.70246851]
[1767094593373,2.01033458,124.54,124.48,5.65]
[1767094593572,7.77033458,124.54,124.48,5.65]
[1767094594271,0.04848711,124.52,124.5,0.05244374]
[1767094617798,5.76,124.54,124.5,0.05244374]
[1767094635316,5.76,124.54,124.5,7.54890048]
[1767094641226,5.76,124.54,124.5,0.05244374]
[1767094642029,7.77033458,124.54,124.5,0.05244374]
[1767094647131,4.86,124.53,124.5,0.05244374]
[1767094686885,4.37,124.54,124.5,0.05244374]
[1767094687772,4.37,124.53,124.5,0.00244374]
[1767094688671,4.42,124.53,124.5,0.00244374]
[1767094692376,4.37,124.52,124.44,14.90513207]
[1767094692580,98.07976425,124.52,124.44,14.90513207]
[1767094692877,98.07976425,124.52,124.43,184.1767686]
[1767094693279,0.05158019,124.49,124.46,0.05411708]
[1767094716710,0.05158019,124.49,124.46,4.48411708]
[1767094767444,0.00158019,124.49,124.46,4.48411708]
[1767094796171,0.00158019,124.49,124.46,1.708e-05]
[1767094796378,0.00158019,124.49,124.42,10.00802518]
[1767094797270,0.00158019,124.49,124.44,0.05741689]
[1767094797672,7.2393,124.48,124.44,0.05741689]
[1767094798278,7.2393,124.48,124.45,4.26]
[1767094800270,10.38141818,124.48,124.44,0.05741689]
[1767094816492,12.62141818,124.48,124.44,0.05741689]
[1767094822190,7.2399,124.47,124.44,0.05741689]
[1767094822398,2.28,124.47,124.41,4.3]
[1767094822591,97.28,124.46,124.41,4.3]
[1767094823595,0.0549939,124.45,124.42,0.05083187]
[1767094831102,7.2961939,124.45,124.42,0.05083187]
[1767094849509,9.7261939,124.45,124.42,0.05083187]
[1767094860127,2.48,124.44,124.42,0.00083187]
[1767094915386,2.48,124.44,124.39,11.5845]
[1767094916388,2.48,124.44,124.4,0.05618385]
[1767094921696,2.48,124.44,124.4,7.30008385]
[1767094921989,0.0549939,124.45,124.4,4.91618385]
[1767094922995,0.0549939,124.45,124.41,4.86]
[1767094925894,0.0549939,124.45,124.4,7.30008385]
[1767094926097,2.6,124.43,124.4,0.05618385]
[1767094926393,2.6,124.41,124.35,4.86]
[1767094927393,0.05093881,124.39,124.37,0.05721423]
[1767094940703,0.05093881,124.39,124.33,106.7975]
[1767094940704,2.68093881,124.39,124.33,106.7975]
[1767094941703,2.68093881,124.39,124.35,0.05328453]
[1767094944607,9.92573881,124.39,124.35,0.05328453]
[1767094944908,2.58,124.38,124.35,0.05328453]
[1767094945606,2.58,124.38,124.35,0.00328453]
[1767094946497,112.7324,124.35,124.3,11.86307352]
[1767094946698,2.53,124.33,124.24,4.53]
[1767094947201,2.53,124.31,124.25,4.53]
[1767094947703,0.05222637,124.29,124.27,0.05617467]
[1767094951606,2.53222637,124.29,124.23,11.7834]
[1767094951808,2.53222637,124.29,124.23,4.53]
[1767094952616,2.53222637,124.29,124.25,0.05358187]
[1767094959932,9.78272637,124.29,124.25,0.00358187]
[1767094960135,4.45733297,124.28,124.25,0.00358187]
[1767094960332,2.44,124.27,124.25,0.00358187]
[1767094960832,4.45733297,124.27,124.25,0.00358187]
[1767094961135,2.44,124.26,124.2,4.53]
[1767094961732,2.44,124.26,124.21,11.7849]
[1767094962133,0.05438763,124.25,124.22,0.0527971]
[1767094965435,0.00438763,124.25,124.22,11.8370971]
[1767094965636,0.00438763,124.25,124.23,4.53]
[1767094965940,2.5,124.29,124.23,4.53]
[1767094966438,4.52733297,124.34,124.26,4.72]
[1767094966636,2.51,124.34,124.26,4.72]
[1767094966842,0.05565321,124.31,124.29,0.05133579]
[1767094970541,2.46,124.3,124.23,6.73733297]
[1767094970749,2.46,124.3,124.23,4.72]
[1767094970937,4.47733297,124.29,124.23,4.72]
[1767094971543,0.05686301,124.27,124.25,0.05888681]
[1767094985661,2.46,124.29,124.25,0.05888681]
[1767094986350,4.49733297,124.31,124.25,4.64888681]
[1767094986653,0.05307902,124.29,124.25,4.64888681]
[1767094996364,2.54307902,124.29,124.25,0.05888681]
[1767095005967,4.56041199,124.29,124.25,0.05888681]
[1767095007670,9.79367902,124.29,124.25,0.05888681]
[1767095007874,11.81101199,124.29,124.25,0.05888681]
[1767095008165,2.01733297,124.27,124.18,167.7315086]
[1767095008669,9.26903297,124.27,124.2,7.2556]
[1767095009168,0.0571427,124.25,124.22,0.05354322]
[1767095009371,9.26903297,124.27,124.22,0.05354322]
[1767095010167,95.14,124.28,124.19,4.73]
[1767095010168,2.01733297,124.25,124.19,4.73]
[1767095010371,2.01733297,124.23,124.19,4.73]
[1767095011269,0.05904765,124.22,124.21,4.73]
[1767095011572,0.05904765,124.22,124.2,0.05366141]
[1767095020975,4.51,124.26,124.2,4.78366141]
[1767095021981,0.05320591,124.24,124.2,4.78366141]
[1767095022575,0.05320591,124.24,124.21,11.985]
[1767095023977,0.00320591,124.24,124.22,4.73]
[1767095024166,0.00320591,124.24,124.22,11.9842]
[1767095026180,4.51,124.28,124.22,11.9842]
[1767095027189,0.0509934,124.26,124.24,0.05085576]
[1767095030699,0.0009934,124.26,124.24,5.11085576]
[1767095030992,4.66,124.29,124.24,5.11085576]
[1767095031897,0.0556994,124.28,124.24,5.11085576]
[1767095040305,0.0556994,124.28,124.24,12.36405576]
[1767095042001,0.0556994,124.28,124.25,5.22]
[1767095043208,0.0556994,124.28,124.24,7.30405576]
[1767095043406,0.0556994,124.28,124.24,12.52405576]
[1767095044506,0.0556994,124.28,124.24,5.27085576]
[1767095046398,0.0556994,124.28,124.24,12.52395576]
[1767095048611,5.2056994,124.28,124.24,0.05085576]
[1767095069414,5.2056994,124.28,124.24,0.00085576]
[1767095069620,4.88,124.27,124.24,0.00085576]
[1767095071724,0.0556994,124.28,124.24,5.30085576]
[1767095071922,4.88,124.3,124.24,5.30085576]
[1767095072129,4.88,124.3,124.24,5.3]
[1767095072326,4.88,124.28,124.22,5.3]
[1767095072829,0.05608579,124.26,124.24,0.0550162]
[1767095089140,5.39608579,124.26,124.22,12.5544]
[1767095090144,5.39608579,124.26,124.23,0.0611613]
[1767095090543,0.05608579,124.26,124.23,0.0611613]
[1767095092743,3.51341525,124.32,124.25,5.44]
[1767095092948,8.85341525,124.32,124.26,5.44]
[1767095093354,5.34,124.31,124.26,5.44]
[1767095093852,0.05964121,124.3,124.27,0.06117751]
[1767095096358,0.05964121,124.3,124.27,7.31257751]
[1767095098461,0.05964121,124.3,124.27,12.50257751]
[1767095099061,0.05964121,124.3,124.28,7.2509]
[1767095099361,3.51341525,124.32,124.28,7.2509]
[1767095100358,0.05436088,124.31,124.28,7.2509]
[1767095102164,0.05436088,124.31,124.28,12.4409]
[1767095102956,5.3,124.33,124.27,2.07920322]
[1767095102957,5.3,124.34,124.29,5.19]
[1767095103163,5.3,124.34,124.3,5.19]
[1767095103864,5.3,124.37,124.32,5.19]
[1767095104069,0.0565544,124.36,124.33,0.05568491]
[1767095104962,5.3,124.39,124.33,7.26371062]
[1767095105958,5.3,124.41,124.34,5.19]
[1767095106165,5.3,124.41,124.35,7.20802571]
[1767095106359,5.3,124.41,124.36,5.19]
[1767095106566,5.3,124.41,124.36,12.4362]
[1767095106958,5.3,124.41,124.37,0.05857086]
[1767095107171,0.04442753,124.4,124.37,0.05857086]
[1767095110764,5.3,124.43,124.37,5.24857086]
[1767095111163,5.3,124.43,124.37,12.49417086]
[1767095111874,5.3,124.43,124.38,5.19]
[1767095122376,5.3,124.43,124.38,12.4351]
[1767095129985,5.3,124.43,124.39,7.2445]
[1767095130178,5.3,124.43,124.4,0.05224903]
[1767095130772,5.31,124.45,124.4,5.28224903]
[1767095131572,5.31,124.45,124.4,12.52594903]
[1767095131774,5.31,124.45,124.4,5.28224903]
[1767095139883,7.32802571,124.44,124.4,5.28224903]